[Event "127th NZ Congress Major 2020"]
[Site "Tauranga"]
[Date "2020.01.22"]
[Round "9.3"]
[White "Ashe, Michael"]
[Black "Perrin, Brent"]
[Result "0-1"]
[ECO "A85"]
[WhiteElo "1460"]
[BlackElo "1804"]
[Annotator "NA RC"]
[PlyCount "83"]
[EventDate "2020.01.14"]
[EventType "swiss"]
[EventCountry "NZL"]
[SourceTitle "playchess.com"]
[Source "ChessBase"]
[SourceQuality "1"]
[TimeControl "40/5400+30:1800+30"]

{[%evp 8,83,19,5,32767,32767,8,32767,17,8,40,16,42,28,35,44,43,42,70,32767,81,-103,-86,-98,-118,-94,-101,-171,-174,-180,-161,-160,-158,-165,-160,-152,-151,-164,-177,-170,-162,-160,-162,-161,-141,-169,-147,-150,-147,-141,32767,-142,-106,32767,-124,32767,-213,-227,-234,-232,-154,-150,-169,-227,-190,-188,-211,-635,-697,-807,-896,-4778,-886,-1372,-568,-2103,-5699,-5152]} 1. d4 {[%emt 0:00:00]} e6 {[%emt 0:00:00]} 2. c4 {[%emt 0:00:00]} f5 {[%emt 0:00:00]} 3. Nc3 {[%emt 0:00:00]} Nf6 {[%emt 0:00:15]} 4. f3 {[%emt 0:00:08]} Bb4 {[%emt 0:01:57]} (4... d5 5. Bg5 Be7 6. e3 O-O 7. Bd3 c5 8. Nge2 Nc6 9. a3 cxd4 10. exd4 e5 11. O-O exd4 12. Bxf6 dxc3 13. Bxc3 {1-0 (50) Ivanisevic,I (2662)-Rombaldoni,A (2518) Bergamo 2015}) 5. Bd2 {[%emt 0:00:15]} O-O {[%emt 0:02:27]} 6. a3 {[%emt 0:00:05] A85: Dutch Defence: 2 c4 Nf6 3 Nc3} Bxc3 {[%emt 0:01:52]} 7. Bxc3 {[%emt 0:00:10]} b6 {[%emt 0:04:04]} 8. e3 {[%emt 0:00:19]} Bb7 {[%emt 0:01:33]} 9. Qd2 {[%emt 0:01:03]} d5 $146 {[%emt 0:03:10]} ({Predecessor:} 9... a5 10. Nh3 a4 11. Bd3 Nc6 12. O-O {1-0 (35) Kempinski,R (2528)-Grabarczyk,B (2394) Plock 2000}) 10. Nh3 {[%emt 0:02:45]} Nbd7 {[%emt 0:02:27]} 11. Bd3 {[%emt 0:02:14]} c5 {[%emt 0:02:08]} 12. O-O {[%emt 0:02:05]} Qc7 {[%emt 0:05:33]} 13. Nf4 {[%emt 0:04:48]} Rae8 {[%emt 0:00:52]} 14. b4 $2 {[%emt 0:05:06]} (14. Rac1 $16) 14... cxd4 {[%emt 0:09:27]} 15. exd4 {[%emt 0:04:12]} dxc4 {[%emt 0:00:58]} 16. Bc2 {[%emt 0:03:38]} Nd5 {[%emt 0:01:10]} 17. Ne2 {[%emt 0:02:45]} (17. Nxd5 $17 Bxd5 18. Rfe1) 17... b5 {[%emt 0:00:50]} 18. Bb2 {[%emt 0:05:48]} N7f6 {[%emt 0:02:26]} 19. Nc3 {[%emt 0:01:57]} Qd7 {[%emt 0:03:10]} 20. Rfe1 {[%emt 0:03:53]} a6 {[%emt 0:03:50]} 21. Re5 {[%emt 0:04:49]} Qd6 {[%emt 0:06:04]} 22. Ree1 {[%emt 0:04:02]} Nxc3 {[%emt 0:02:50]} 23. Bxc3 {[%emt 0:00:23]} Nd5 {[%emt 0:00:50]} 24. Re5 {[%emt 0:01:44]} Rd8 {[%emt 0:02:00]} 25. Rae1 {[%emt 0:05:16]} Nxc3 {[%emt 0:15:39]} 26. Qxc3 {[%emt 0:00:34]} Qxd4+ {[%emt 0:05:11]} 27. Qxd4 {[%emt 0:00:10]} Rxd4 {[%emt 0:00:05]} 28. Rxe6 {[%emt 0:00:36]} Bc8 {[%emt 0:01:11]} 29. Re7 {[%emt 0:02:28]} Rd7 {[%emt 0:01:08]} 30. R7e5 {[%emt 0:04:09]} g6 {[%emt 0:00:24]} 31. a4 {[%emt 0:01:06]} Rd2 {[%emt 0:04:26]} 32. R1e2 {[%emt 0:02:58] [#]} Rxe2 $1 {[%emt 0:00:39]} 33. Rxe2 {[%emt 0:00:07]} Kf7 {[%emt 0:00:17]} 34. axb5 {[%emt 0:00:56]} axb5 {[%emt 0:00:19]} 35. f4 {[%emt 0:01:16]} (35. Kf1 {keeps fighting.}) 35... Rd8 {[%emt 0:01:20]} 36. g3 {[%emt 0:00:40]} Rd4 {[%emt 0:01:16]} 37. Re5 $2 {[%emt 0:02:18]} (37. Kf1) 37... Rd2 {[%emt 0:01:46]} 38. Bxf5 {[%emt 0:02:24]} Bxf5 {[%emt 0:00:50]} 39. Rxb5 {[%emt 0:00:14]} Rb2 $19 {[%emt 0:00:27]} (39... c3 $142 40. Rc5 c2 41. Rc7+ Rd7 42. Rxc2 Bxc2) 40. Rb7+ {[%emt 0:00:00]} Kg8 {[%emt 0:00:00]} 41. b5 {[%emt 0:01:21]} (41. Rc7 $142 Be6 42. h4) 41... c3 {[%emt 0:01:01]} 42. Rb6 {[%emt 1:02:18]} 0-1

[Event "127th NZ Congress Major 2020"]
[Site "Tauranga"]
[Date "2020.01.22"]
[Round "9.4"]
[White "Dai, Oliver"]
[Black "Chen, Matthew"]
[Result "1-0"]
[ECO "B40"]
[WhiteElo "1737"]
[BlackElo "1596"]
[Annotator "NA"]
[PlyCount "115"]
[EventDate "2020.01.14"]
[EventType "swiss"]
[EventCountry "NZL"]
[SourceTitle "playchess.com"]
[Source "ChessBase"]
[SourceQuality "1"]
[TimeControl "40/5400+30:1800+30"]

1. e4 {[%emt 0:00:00]} c5 {[%emt 0:00:00]} 2. Nf3 {[%emt 0:00:00]} e6 {[%emt 0:00:00]} 3. Bd3 {[%emt 0:00:00]} a6 {[%emt 0:00:00]} 4. O-O {[%emt 0:00:04]} Nc6 {[%emt 0:00:00]} 5. c3 {[%emt 0:00:24]} Nf6 {[%emt 0:00:00]} 6. Bc2 {[%emt 0:00:13]} d6 {[%emt 0:00:00]} 7. Re1 {[%emt 0:00:55]} Be7 {[%emt 0:00:44]} 8. d4 {[%emt 0:01:14]} cxd4 {[%emt 0:00:29]} 9. cxd4 {[%emt 0:00:23]} e5 {[%emt 0:01:16]} 10. d5 {[%emt 0:01:39]} Na7 {[%emt 0:01:19]} 11. Nc3 {[%emt 0:01:02]} b5 {[%emt 0:01:37]} 12. h3 {[%emt 0:01:47]} a5 {[%emt 0:01:28]} 13. Be3 {[%emt 0:01:28]} Bd7 {[%emt 0:00:44]} 14. Qe2 {[%emt 0:05:09]} b4 {[%emt 0:02:26]} 15. Bxa7 {[%emt 0:04:54]} Rxa7 {[%emt 0:00:37]} 16. Nd1 {[%emt 0:00:58]} O-O {[%emt 0:01:21]} 17. b3 {[%emt 0:01:33]} Qb6 {[%emt 0:01:04]} 18. Nb2 {[%emt 0:01:24]} Bb5 {[%emt 0:01:10]} 19. Bd3 {[%emt 0:00:14]} Bxd3 {[%emt 0:01:56]} 20. Qxd3 {[%emt 0:00:12]} Rc8 {[%emt 0:00:23]} 21. Na4 {[%emt 0:02:55]} Qc7 {[%emt 0:01:09]} 22. Nd2 {[%emt 0:01:42]} Nd7 {[%emt 0:02:02]} 23. Nc4 {[%emt 0:06:32]} Nc5 {[%emt 0:01:12]} 24. Nxc5 {[%emt 0:00:05]} Qxc5 {[%emt 0:00:11]} 25. Qe3 {[%emt 0:01:30]} Qxe3 {[%emt 0:05:48]} 26. fxe3 {[%emt 0:02:28]} Rc5 {[%emt 0:03:37]} 27. g3 {[%emt 0:00:47]} f5 {[%emt 0:02:17]} 28. exf5 {[%emt 0:01:02]} Rxd5 {[%emt 0:00:08]} 29. Rad1 {[%emt 0:00:33]} Rc5 {[%emt 0:03:39]} 30. Re2 {[%emt 0:01:35]} Rc6 {[%emt 0:01:34]} 31. Red2 {[%emt 0:01:21]} Raa6 {[%emt 0:01:55]} 32. Kf2 {[%emt 0:00:33]} a4 {[%emt 0:00:43]} 33. h4 {[%emt 0:01:11]} axb3 {[%emt 1:05:41]} 34. axb3 Ra3 {[%emt 0:00:00]} 35. Nxa3 {[%emt 0:00:37]} bxa3 {[%emt 0:00:00]} 36. Ra2 {[%emt 0:00:32]} Ra6 {[%emt 0:00:00]} 37. Rd5 {[%emt 0:00:13]} Bf6 {[%emt 0:00:00]} 38. e4 {[%emt 0:00:08]} Kf7 {[%emt 0:00:00]} 39. b4 {[%emt 0:00:14]} Ra4 {[%emt 0:00:00]} 40. Rb5 {[%emt 0:00:41]} Be7 {[%emt 0:00:00]} 41. Ke3 {[%emt 0:02:29]} d5 {[%emt 0:00:00]} 42. Rxd5 {[%emt 0:00:24]} Bxb4 {[%emt 0:00:00]} 43. Rxe5 {[%emt 0:00:23]} Be1 {[%emt 0:00:00]} 44. Kf3 {[%emt 0:00:46]} Bc3 {[%emt 0:00:00]} 45. Rc5 {[%emt 0:00:32]} Bb2 {[%emt 0:00:00]} 46. Rb5 {[%emt 0:00:13]} Bc1 {[%emt 0:00:00]} 47. Rb1 {[%emt 0:00:19]} Rc4 {[%emt 0:00:00]} 48. Rxc1 {[%emt 0:00:11]} Rxc1 {[%emt 0:00:00]} 49. Rxa3 {[%emt 0:00:06]} Rf1+ {[%emt 0:00:00]} 50. Kg4 {[%emt 0:00:57]} Re1 {[%emt 0:00:00]} 51. Kf4 {[%emt 0:00:24]} Kf6 {[%emt 0:00:00]} 52. e5+ {[%emt 0:00:48]} Kf7 {[%emt 0:00:00]} 53. Ra7+ {[%emt 0:00:37]} Kf8 {[%emt 0:00:00]} 54. g4 {[%emt 0:00:40]} Rf1+ {[%emt 0:00:00]} 55. Ke4 {[%emt 0:00:47]} Rg1 {[%emt 0:00:00]} 56. Kd5 {[%emt 0:00:19]} Rxg4 {[%emt 0:00:00]} 57. Ke6 {[%emt 0:00:03]} g6 {[%emt 0:00:00]} 58. f6 {[%emt 0:00:06]} 1-0

[Event "127th NZ Congress Major 2020"]
[Site "Tauranga"]
[Date "2020.01.22"]
[Round "9.5"]
[White "Gold, Hamish"]
[Black "Zhang, Boyuan"]
[Result "0-1"]
[ECO "D02"]
[WhiteElo "1683"]
[BlackElo "1588"]
[Annotator "NA RC"]
[PlyCount "76"]
[EventDate "2020.01.14"]
[EventType "swiss"]
[EventCountry "NZL"]
[SourceTitle "playchess.com"]
[Source "ChessBase"]
[SourceQuality "1"]
[TimeControl "40/5400+30:1800+30"]

1. d4 {[%emt 0:00:00]} d5 {[%emt 0:00:00]} 2. Bf4 {[%emt 0:00:00]} Nf6 {[%emt 0:00:00]} 3. e3 {[%emt 0:00:15]} e6 {[%emt 0:00:00]} 4. c3 {[%emt 0:00:26]} c5 {[%emt 0:00:10]} 5. Bd3 {[%emt 0:01:23]} Nc6 {[%emt 0:00:24]} 6. Nf3 {[%emt 0:01:23]} Bd6 {[%emt 0:00:45]} 7. Bg3 {[%emt 0:01:04]} O-O {[%emt 0:00:20]} 8. Nbd2 {[%emt 0:00:21]} b6 {[%emt 0:00:34]} 9. Ne5 {[%emt 0:00:35]} Bb7 {[%emt 0:01:15]} 10. Ng4 {[%emt 0:02:54]} Be7 {[%emt 0:11:40]} 11. Nxf6+ {[%emt 0:04:51]} Bxf6 {[%emt 0:00:14]} 12. h4 {[%emt 0:01:28]} h6 {[%emt 0:03:11]} 13. Bf4 {[%emt 0:07:06]} e5 {[%emt 0:01:50]} 14. dxe5 {[%emt 0:05:17]} Bxe5 {[%emt 0:04:57]} 15. Qg4 {[%emt 0:02:54]} Qf6 {[%emt 0:02:02]} 16. Bg5 {[%emt 0:07:25]} Bc8 {[%emt 0:08:41]} 17. Qh5 {[%emt 0:03:49]} Qe6 {[%emt 0:02:50]} 18. Qf3 {[%emt 0:07:03]} Bd6 {[%emt 0:10:53]} 19. Bc2 {[%emt 0:04:46]} Ne5 {[%emt 0:07:45]} 20. Qe2 {[%emt 0:00:51]} a5 {[%emt 0:05:58]} 21. Bf4 {[%emt 0:17:41]} Ba6 {[%emt 0:01:31]} 22. c4 {[%emt 0:01:16]} dxc4 {[%emt 0:06:10]} 23. Bxe5 {[%emt 0:03:55]} c3 {[%emt 0:02:18]} 24. Bxc3 {[%emt 0:00:57]} Bxe2 {[%emt 0:00:23]} 25. Kxe2 {[%emt 0:00:06]} Be5 {[%emt 0:01:55]} 26. Bb3 {[%emt 0:00:29]} Qg4+ {[%emt 0:02:40]} 27. Kf1 {[%emt 0:00:14]} Bxc3 {[%emt 0:00:40]} 28. bxc3 {[%emt 0:00:06]} Qg6 {[%emt 0:01:27]} 29. e4 {[%emt 0:00:56]} Rad8 {[%emt 0:02:58]} 30. Bd5 {[%emt 0:00:59]} Rxd5 {[%emt 0:01:06]} 31. exd5 {[%emt 0:00:13]} Qd3+ {[%emt 0:00:04]} 32. Kg1 {[%emt 0:00:27]} Qxd2 {[%emt 0:00:16]} 33. Rb1 {[%emt 0:00:09]} Qxa2 {[%emt 0:01:08]} 34. Rxb6 {[%emt 0:00:12]} Qxd5 {[%emt 0:00:06]} 35. Rh3 {[%emt 0:00:17]} Re8 {[%emt 0:00:48]} 36. Rg3 {[%emt 0:00:11]} a4 {[%emt 0:01:07]} 37. Rxh6 {[%emt 0:00:15]} a3 {[%emt 0:02:57]} 38. Ra6 {[%emt 0:26:46]} Ra8 {[%emt 0:01:23]} 0-1